Cogmind - Beta 15 @@@ ROGUE MODE // 2025.07.07 @ 22:38:08 Player: mEkbOk Result: Destroyed by P-60 Hacker with Shock Rifle Performance ------------- Evolutions (0) 0 Regions Visited (3) 600 Robots Destroyed (26) 130 Value Destroyed (606) 606 Prototype IDs (0) 0 Alien Tech Used (0) 0 Bonus (0) 0 TOTAL SCORE: 1336 Bonus ------- None Cogmind --------- Core Integrity 0/250 Matter 268/300 Energy 125/125 System Corruption 1% Temperature Cool (36) Movement Walking (120) Location -9/Recycling Parts ------- > --- POWER (1) -------- Light Ion Engine > --- PROPULSION (2) --- Aluminum Leg Aluminum Leg > --- UTILITY (2) ------ Disposable Heat Sink Medium Armor Plating > --- WEAPON (2) ------- Medium Laser Light Assault Rifle > --- INVENTORY (5) ---- Ion Engine Improved Ion Engine Medium Laser Beam Rifle Peak State ------------ > --- POWER ------------ Subdweller Power Source > --- PROPULSION ------- Aluminum Leg Aluminum Leg > --- UTILITY ---------- Disposable Heat Sink Medium Armor Plating > --- WEAPON ----------- Medium Laser Light Assault Rifle > --- INVENTORY -------- Ion Engine Light Ion Engine Medium Laser [Rating: 10] Favorites ----------- Power Ion Engine Engine Ion Engine Propulsion Light Treads Treads Light Treads Leg Aluminum Leg Utility Small Storage Unit Device Disposable Heat Sink Storage Small Storage Unit Protection Medium Armor Plating Weapon Medium Laser Energy Gun Medium Laser Ballistic Gun Light Assault Rifle Build | -11 -10 -10 -9 ------- Run | Yrd Mat Sub Rec Slots Evolved . | . . . . Power . | . . . . Propulsion . | . . . . Utility . | . . . . Weapon . | . . . . Parts Attached 21 | 6 6 6 3 Power 6 | 1 1 3 1 Engine 6 | 1 1 3 1 Core . | . . . . Reactor . | . . . . Propulsion 4 | 2 . 2 . Treads 2 | 2 . . . Leg 2 | . . 2 . Wheel . | . . . . Hover . | . . . . Flight . | . . . . Utility 5 | 1 2 1 1 Device 1 | . . 1 . Storage 1 | 1 . . . Processor . | . . . . Hackware . | . . . . Protection 3 | . 2 . 1 Artifact . | . . . . Weapon 6 | 2 3 . 1 Energy Gun 5 | 2 2 . 1 Energy Cannon . | . . . . Ballistic Gun 1 | . 1 . . Ballistic Cannon . | . . . . Launcher . | . . . . Special Weapon . | . . . . Impact Weapon . | . . . . Slashing Weapon . | . . . . Piercing Weapon . | . . . . Special Melee Weapon . | . . . . Unidentified Prototypes . | . . . . Parts Lost 6 | . 1 5 . Power . | . . . . Propulsion 2 | . . 2 . Utility 1 | . . 1 . Weapon 3 | . 1 2 . Highest Loss Streak 2 | . 1 2 . To Critical Strikes 1 | . . 1 . Average Backups 4 | 2 4 6 3 Power 1 | . 1 2 2 Propulsion 1 | 1 2 1 . Utility . | . . . . Weapon 1 | 1 1 2 1 Tool/Special . | . . . . Unused Backups 4 | . . . 4 Power 2 | . . . 2 Propulsion . | . . . . Utility . | . . . . Weapon 2 | . . . 2 Tool/Special . | . . . . Average Slot Usage (%) 90 | . 89 86 100 Engine 14 | . 14 14 14 Treads 16 | . 27 10 . Leg 8 | . . 8 28 Device 6 | . . 9 14 Storage 11 | . 14 14 . Protection 4 | . 4 1 13 Energy Gun 23 | . 27 22 14 Ballistic Gun 4 | . . 4 14 Peak Build Rating 10 | 6 7 9 10 Average Rating 7 | 4 6 7 9 On Entrance 5 | . 6 7 8 Naked Turns . | . . . . Heaviest Build 17 | 14 17 17 16 Greatest Support 40 | 40 40 40 20 Greatest Overweight (x) . | . . . . Average Overweight (x) . | . . . . Largest Inventory Capacity 8 | 8 8 8 8 Average Capacity 7 | 6 8 8 5 Most Carried 8 | 5 7 8 4 Average Carried 4 | 2 4 6 3 Final Capacity 8 | 8 8 8 5 Final Carried 7 | 4 7 4 4 Class Distribution -------------------- 100% | Mutant Dominant Class ---------------- Mutant | -10/Materials Mutant | -10/Subcaves Mutant | -9/Recycling Resources | -11 -10 -10 -9 ----------- Run | Yrd Mat Sub Rec Matter Collected 403 | 193 119 91 . Remotely . | . . . . Salvage Created 758 | . 533 225 . Parts 44 | . 31 13 . Haulers Intercepted . | . . . . Recyclers Shooed 2 | . 2 . . Parts Field Recycled . | . . . . Retrieved Matter . | . . . . Parts Self-Destructed 10 | . . 10 . Prevented . | . . . . Kills | -11 -10 -10 -9 ------- Run | Yrd Mat Sub Rec Combat Hostiles Destroyed 20 | . 14 6 . Guns 20 | . 14 6 . Classes Destroyed 9 | . 6 3 . Worker 1 | . 1 . . Tunneler 1 | . 1 . . Operator 2 | . 2 . . Turret 1 | . . 1 . Watcher 1 | . 1 . . Swarmer 9 | . 6 3 . Grunt 8 | . 8 . . Sentry 1 | . . 1 . Subdweller 2 | . . 2 . Best Kill Streak 6 | . 6 4 . Combat Bots Only 4 | . 4 3 . Max Kills in Single Turn 2 | . 2 1 . Gunslinging . | . . . . Exploded . | . . . . Melee . | . . . . Uniques/NPCs Destroyed . | . . . . Combat | -11 -10 -10 -9 -------- Run | Yrd Mat Sub Rec Hostile Shots Fired 124 | . 66 54 4 Missed 44 | . 24 18 2 Hits 80 | . 42 36 2 Projectile 80 | . 42 36 2 Critical Strikes 4 | . 1 3 . Damage Taken 1166 | . 476 659 31 Core 257 | . 56 185 16 Absorbed by Shields . | . . . . Redirected to Shielding 20 | . 20 . . Regen/Repaired (Parts) 50 | . 50 . . Core Remaining (%) 100 | 100 . . . Volleys Fired 79 | . 50 27 2 Largest 2 | . 2 2 2 Hottest 100 | . 100 100 70 Shots Fired 152 | . 95 53 4 Gun 152 | . 95 53 4 Cannon . | . . . . Launcher . | . . . . Special . | . . . . Kinetic 10 | . 2 6 2 Thermal 109 | . 60 47 2 Explosive . | . . . . Electromagnetic 33 | . 33 . . Robot Hit Streak 8 | . 8 8 . Robot Miss Streak 4 | . 4 3 4 Penetration Max . | . . . . Secondary Targets 3 | . 2 1 . Max Gunslinging Chain 1 | . 1 1 . Shots Hit Robots 88 | . 55 33 . Core Hits 42 | . 29 13 . Critical Kills . | . . . . Critical Parts Destroyed . | . . . . Critical Strikes 8 | . 5 3 . Burn 8 | . 5 3 . Melee Attacks . | . . . . Impact . | . . . . Slashing . | . . . . Piercing . | . . . . Sneak Attacks . | . . . . Combat Hostiles . | . . . . Follow-up Attacks . | . . . . Damage Inflicted 1182 | . 780 402 . Guns 1162 | . 760 402 . Cannons . | . . . . Explosions 20 | . 20 . . Melee . | . . . . Ramming . | . . . . Kinetic 35 | . 9 26 . Thermal 869 | . 493 376 . Explosive . | . . . . Electromagnetic 278 | . 278 . . Impact . | . . . . Slashing . | . . . . Piercing . | . . . . Highest Corruption . | . . . . Average Corruption . | . . . . Corruption Purged . | . . . . Corruption Blocked . | . . . . Overload Shots . | . . . . Overflow Damage 6 | . 6 . . Projectiles . | . . . . Explosions 6 | . 6 . . Melee . | . . . . Knockbacks . | . . . . Impact . | . . . . Kinetic . | . . . . Secondary . | . . . . Self-Inflicted Damage 36 | . 36 . . Shots 1 | . 1 . . Rammed . | . . . . Targets Rammed . | . . . . Kicked . | . . . . Crushed . | . . . . Highest Temperature 350 | . 350 . 36 Average Temperature 123 | . 125 . 21 Received Heat Transfer 189 | . 162 27 . Effects 2 | . 2 . . Shutdowns 1 | . 1 . . Interference 1 | . 1 . . Siege Activations . | . . . . Martial Activations . | . . . . Shielding Activations . | . . . . Robots Disrupted . | . . . . Combat Hostiles . | . . . . Robots Corrupted . | . . . . Combat Hostiles . | . . . . Parts Fried . | . . . . Impact Corruptions . | . . . . Robots Melted . | . . . . Combat Hostiles . | . . . . Parts Melted 4 | . 2 2 . Heat Transferred 3158 | . 1826 1332 . Parts Sabotaged . | . . . . Parts Stolen . | . . . . Parts Stripped . | . . . . Power Chain Reactions 1 | . 1 . . Alert | -11 -10 -10 -9 ------- Run | Yrd Mat Sub Rec Maximum Alert Level 1 | . 1 . . Low Security (%) 99 | 100 99 . 100 Level 1 . | . . . . Level 2 . | . . . . Level 3 . | . . . . Level 4 . | . . . . Level 5 . | . . . . High Security . | . . . . Max Security . | . . . . Peak Influence 200 | . 200 . 16 Initial . | . . . . Average 43 | . 65 . 1 Influence Increases 577 | . 424 115 38 Destroy 0b10 Robot/C 380 | . 280 100 . Destroy 0b10 Robot/NC 25 | . 25 . . Destroy Leader 52 | . 52 . . Successful Hack 55 | . 18 . 37 Disable Machine 30 | . 30 . . Destroy Structure 5 | . 4 . 1 Lose Combat Pursuer 30 | . 15 15 . Influence Decreases 577 | . 264 275 38 Entered New Map 77 | . . 77 . Time Decay 470 | . 254 178 38 Lost Part 30 | . 10 20 . Squads Dispatched 3 | . 3 . . Investigation 1 | . 1 . . Extermination . | . . . . Reinforcement 2 | . 2 . . Assault . | . . . . Garrison . | . . . . Intercept . | . . . . Searches Triggered . | . . . . Construction Impeded . | . . . . Haulers Reinforced . | . . . . Active Scanning Responses . | . . . . Cargo Convoy Interrupts . | . . . . Stealth | -11 -10 -10 -9 --------- Run | Yrd Mat Sub Rec Distress Signals 2 | . 2 . . Communications Jammed . | . . . . Distress Signals . | . . . . Times Spotted 39 | . 27 10 2 Peak Tracking Total 4 | . 4 4 2 Tactical Retreats 3 | . 1 2 . Traps | -11 -10 -10 -9 ------- Run | Yrd Mat Sub Rec Traps Triggered 1 | . . 1 . Indirectly . | . . . . Trap Hack Attempts . | . . . . Triggered . | . . . . Disarmed . | . . . . Reprogrammed . | . . . . Reused . | . . . . Traps Extracted . | . . . . Installed . | . . . . Triggered . | . . . . Machines | -11 -10 -10 -9 ---------- Run | Yrd Mat Sub Rec Machines Disabled 3 | . 2 1 . Max in Single Turn 1 | . 1 1 . Machines Repaired . | . . . . Machines Dismantled . | . . . . Machines Sabotaged . | . . . . Overloaded Fab Kills . | . . . . Hacking | -11 -10 -10 -9 --------- Run | Yrd Mat Sub Rec Machines Accessed 15 | . 6 . 9 Terminals 9 | . 5 . 4 Fabricators . | . . . . Repair Stations 1 | . 1 . . Recycling Units 5 | . . . 5 Scanalyzers . | . . . . Garrison Access . | . . . . Total Hacks 32 | . 15 . 17 Successful 22 | . 10 . 12 Failed 10 | . 5 . 5 Catastrophic . | . . . . Database Lockouts . | . . . . Manual 12 | . 11 . 1 Terminals 21 | . 13 . 8 Fabricators . | . . . . Repair Stations 2 | . 2 . . Recycling Units 9 | . . . 9 Scanalyzers . | . . . . Garrison Access . | . . . . Terminal Hacks 7 | . 4 . 3 Part Schematic 2 | . . . 2 Terminal Index 2 | . 1 . 1 Recycling Unit Index 1 | . 1 . . Locate Traps 2 | . 2 . . Fabricator Hacks . | . . . . Repair Station Hacks 2 | . 2 . . Scan Component 1 | . 1 . . Repair 1 | . 1 . . Recycling Unit Hacks 8 | . . . 8 Report Inventory 5 | . . . 5 Retrieve Components 3 | . . . 3 Scanalyzer . | . . . . Garrison Access Hacks . | . . . . Unauthorized Hacks 5 | . 4 . 1 Terminals 5 | . 4 . 1 Track 5 | . 4 . 1 Fabricators . | . . . . Repair Stations . | . . . . Recycling Units . | . . . . Scanalyzers . | . . . . Garrison Access . | . . . . Data Cores Recovered . | . . . . Used . | . . . . Hacking Detections 11 | . 6 . 5 Full Trace Events . | . . . . Feedback Events . | . . . . Feedback Blocked . | . . . . Robot Schematics Acquired . | . . . . Robots Built . | . . . . Authchips . | . . . . Time . | . . . . Total Robot Build Rating . | . . . . Part Schematics Acquired 2 | . . . 2 Parts Built . | . . . . Authchips . | . . . . Time . | . . . . Total Part Build Rating . | . . . . Parts Repaired 1 | . 1 . . Time 26 | . 26 . . Parts Recycled . | . . . . Recycled Matter . | . . . . Retrieved Matter . | . . . . Retrieved Components 6 | . . . 6 Parts Scanalyzed . | . . . . Part Schematics Acquired . | . . . . Parts Damaged . | . . . . Bothacking | -11 -10 -10 -9 ------------ Run | Yrd Mat Sub Rec Used RIF Installer . | . . . . Robots Hacked . | . . . . Non-combat . | . . . . Combat . | . . . . Robot Hacks Applied . | . . . . Relay Couplers Released . | . . . . Fabnet Peak Effective % . | . . . . Robots Rewired . | . . . . Allies Hacked . | . . . . Hacks Repelled . | . . . . Allies | -11 -10 -10 -9 -------- Run | Yrd Mat Sub Rec Total Allies . | . . . . Largest Group . | . . . . Highest-Rated Group . | . . . . Highest-Rated Ally . | . . . . Total Orders . | . . . . Ally Attacks . | . . . . Total Damage . | . . . . Kills . | . . . . Allies Corrupted . | . . . . Allies Melted . | . . . . Intel | -11 -10 -10 -9 ------- Run | Yrd Mat Sub Rec Active Infowar (turns) . | . . . . Robot Analysis Total . | . . . . Derelict Logs Recovered 1 | . . 1 . Drone Launches . | . . . . Drone Recoveries . | . . . . Exploration | -11 -10 -10 -9 ------------- Run | Yrd Mat Sub Rec Turns Passed 2899 | 72 1268 986 573 Spaces Moved 1534 | 42 424 615 453 Core 9 | 9 . . . Treads 833 | 33 424 376 . Legs 692 | . . 239 453 Wheels . | . . . . Hover . | . . . . Flight . | . . . . Fastest Speed 50 | 50 160 120 120 Average Speed 141 | 136 160 144 120 Slowest Speed 160 | 160 160 160 120 Overloaded Moves . | . . . . Propulsion Burnouts . | . . . . Robots Hopped . | . . . . Potential Cave-ins . | . . . . Cave-ins Triggered . | . . . . Exploration Rate (%) 47 | 4 73 28 85 Regions Visited 3 Branch Regions 2 Pre-discovered Areas 1 | . . 1 . Known Exits Taken . | . . . . Unknown Exits Taken 3 | 1 1 1 . Scrap Searched 2 | . . 2 . Spaces Dug . | . . . . Terrain Destroyed 2 | . 2 . . Melee . | . . . . Projectile . | . . . . AOE 2 | . 2 . . Terrain Rammed . | . . . . Walls Destroyed . | . . . . Machines Disabled . | . . . . Actions | -11 -10 -10 -9 --------- Run | Yrd Mat Sub Rec Total 2117 | 57 919 661 480 Wait 450 | . 427 6 17 Move 1531 | 41 423 614 453 Hop . | . . . . Pick Up 26 | 10 9 4 3 Fast Attach . | . . . . Attach 16 | 6 3 4 3 Detach . | . . . . Swap 7 | . 4 3 . Drop 8 | . 3 3 2 Fire 79 | . 50 27 2 Melee . | . . . . Ram . | . . . . Kick . | . . . . Crush . | . . . . Escape Stasis . | . . . . Rewire . | . . . . Trap . | . . . . Miscellaneous . | . . . . Route ------- -11/Scrapyard -10/Materials (discovered 4 exits: [*Mat x2] / [*Min] / [*Sub]) -10/Subcaves (discovered 2 exits: [*Mat] / *Rec) -9/Recycling (discovered 1 exit: [*Fac]) History --------- Turn | Location | Event 18 | -11/Scrapyard | Discovered new exit (range 15) 73 | -11/Scrapyard | Entered Materials 302 | -10/Materials | Build established: Mutant 766 | -10/Materials | Discovered new exit (range 3) 916 | -10/Materials | Discovered new exit (range 9) 957 | -10/Materials | Repaired Lgt. Treads 1064 | -10/Materials | Discovered new exit (range 13) 1327 | -10/Materials | Discovered new exit (range 10) 1341 | -10/Materials | Entered Subcaves 1342 | -10/Subcaves | Approached by a straggling Scientist 1397 | -10/Subcaves | Learned location of Storage (-9) 1415 | -10/Subcaves | Discovered new exit (range 16) 2011 | -10/Subcaves | Core integrity fell below 50% 2062 | -10/Subcaves | Shifting Twisted Machinery released Battle Cannon 2076 | -10/Subcaves | Shifting Twisted Machinery released Sub. Beam Cannon 2214 | -10/Subcaves | Discovered new exit (range 15) 2264 | -10/Subcaves | Core integrity fell below 20% 2327 | -10/Subcaves | Entered Recycling 2812 | -9/Recycling | Discovered new exit (range 8) 2900 | -9/Recycling | Destroyed by P-60 Hacker with Shock Rifle Last Messages --------------- 02845_ Connecting with Terminal... >>Schematic(EM Shotgun) Downloading schematic... EM Shotgun Rating: 2 Schematic downloaded. 02864_ Connecting with Recycling Unit... >>Recycling(Report) Matter reserves: 0 Inventory: Autogun (61%) Beam Rifle (61%) Plasma Cutter (70%) >>Retrieve(Components) Retrieving 3 components... Plasma Cutter Beam Rifle Autogun 02866_ Acquired Beam Rifle. 02889_ G-34 Mercenary springs to life. Map ----- +----------------------------------------------------+ | "" #?# #####+##### ########## | | "" #?# # | | "" #?# + T | | "" #?# # u | | ### # ####### #Y#########+##### | | ##### # #?????######### | | ????## + ###???????????# | | ?????# ### ==#???????????# | | ?????# #?# ==#???????????# """ """ """ " | | ?????# #?# ==#???????????# """ """ """ " | | ?????#############?# ###???????????# """ """ """ " | | ??????##???????????# #?????????????# | | #####?? ############+#?????????????#######+####### | | # #???????????????????# #?????? | | # #???????????######### ####### | | # #???????##?# + | | ########?# # #?######r### ########### #### | | ?????????# # ### # ??????????# #??# | | ?????????# # #?r # ??????????# #??# | | ?????????# # #?# # ??????????# #??# | | ?????????# # #?# # #?????????# #??# | | ?????????# # #?# # ###########+##?# | | ?????????# # #?# # # #?# | | ?????????# # #?# # # [ ""#?# | | ?????????# + #?# # # | Y"#?# | | ?????????# # #?# @ p # # """ """ ""#?# | | ?????????### # #?######+### # """ """ #?# | | ?????##????# # #?# # """ """ #?# | | ##### ##???# # #?# + #?# | | #???# # ### # """ """ #?? | | ##### # #######+##### """ """ #?? | | ##""" # ### [! #?# """ """ #?? | | ##"T # #?# ] #?# #?? | | ####+####""" # #?# ! [ #?# #?? | | ???# #??#### ###### ##?# #?##############?? | | ??## ##????# #????###??# ! #????????????????? | | ??# ###### #?????????# ! #????????????????? | | ??# #?????????# #????????????????? | | ??# ########?????????# #????????????????? | | ??## ##????????????????# = | #????????????????? | | ???# #?????????????????##########????????????????? | | ???# #???????????????????????????????????????????? | | ???# #???????????????????????????????????????????? | | ####+###?????????????????????????????????????????? | | #?????????????????????????????????????????? | | #?????????????????????????????????????????? | | #?????????????????????????????????????????? | | #?????????????????????????????????????????? | | ########?????????????????????????????????????????? | | ?????????????????????????????????????????????????? | +----------------------------------------------------+ Best States ------------- Heat Dissipation 25 Coolant Potential 50 Energy Generation 15 Energy Capacity 250 Matter Stores 300 Matter Capacity 300 Sight Range 16 Terrain Scan Density 10 Armor Coverage 225 Weapon Shielding 33 Evasion (%) 55 Recoil Reduction 2 Item Schematics ----------------- Lightning Gun | -9/Recycling | Hacked EM Shotgun | -9/Recycling | Hacked Robot Schematics ------------------ None Fabricated ------------ Nothing Repaired ---------- Lgt. Treads | 64% | -10/Materials Alien Tech Used ----------------- None Achievements -------------- None Challenges ------------ None Game ------ Seed RiotArmoredBattery Manual? 0 Play Time 00:29:40 Cumulative 22.8 hours Start 2025.07.07 @ 22:08:20 End 2025.07.07 @ 22:38:08 Sessions 1 Manual Loads 0 Difficulty Rogue Special Mode None Game No. 19 Rogue 19 Adventurer 0 Explorer 0 Win Type - Total 0 Types 0/0/0/0/0/0/0/0/0/0 Lore% 23 Gallery% 19 Achievement% 19 Wizard Run 0 Options --------- Layout 0 ASCII 0 Keyboard 0 Movement Mouse Keybinds 0 Fullscreen 2 Font 24/Smallcaps Map View 76x50 Zoom Use 0% Tactical HUD 1 Map Filters NONE Filters NONE Steam 1 RUN: 48b57053-ad36-4006-9986-abd04277374c